bitfinex/quotes_SOLUSD_20250416
["timestamp","ask_amount","ask_price","bid_price","bid_amount"]
[1744806928358,256.55264289,126.2,126.16,9.13264289]
[1744806928660,264.4767258,126.2,126.15,9.13264289]
[1744806928825,9.13264289,126.19,126.15,17.05912339]
[1744806929545,10.88,126.21,126.18,9.13264289]
[1744806929761,10.88,126.21,126.19,9.13264289]
[1744806930653,10.88,126.21,126.18,9.13264289]
[1744806930865,10.88,126.21,126.18,17.05761087]
[1744806931331,10.88,126.21,126.19,9.13264289]
[1744806931666,10.88,126.26,126.2,9.13264289]
[1744806931968,10.88,126.26,126.24,9.13264289]
[1744806932750,10.88,126.26,126.23,9.13264289]
[1744806932952,10.88,126.26,126.23,17.05431777]
[1744806933551,10.88,126.26,126.25,9.13264289]
[1744806933937,10.88,126.26,126.24,9.13264289]
[1744806935154,10.88,126.26,126.25,14.22740371]
[1744806935652,18.9469,126.34,126.25,14.22740371]
[1744806935956,14.22740371,126.33,126.29,14.22740371]
[1744806936331,14.22740371,126.33,126.28,14.22740371]
[1744806936534,22.14347946,126.33,126.28,14.22740371]
[1744806936840,22.14347946,126.33,126.28,22.14619807]
[1744806937536,17.3938,126.34,126.3,14.22740371]
[1744806937742,39.53652086,126.34,126.3,14.22740371]
[1744806938342,14.22740371,126.31,126.27,7.91925102]
[1744806938544,14.22740371,126.3,126.26,14.22740371]
[1744806938731,14.22740371,126.3,126.26,22.14747096]
[1744806939635,7.91766062,126.3,126.26,22.14747096]
[1744806939835,22.14506433,126.3,126.26,22.14747096]
[1744806940163,14.22740371,126.29,126.24,14.22740371]
[1744806940844,14.22740371,126.29,126.24,22.14823484]
[1744806941761,22.14580911,126.29,126.24,22.14823484]
[1744806941940,14.22740371,126.27,126.23,23.64992361]
[1744806942141,14.22740371,126.27,126.23,22.14922361]
[1744806942744,14.22740371,126.26,126.22,22.14983781]
[1744806942945,22.1476582,126.26,126.21,22.15041893]
[1744806943144,7.92025449,126.26,126.22,14.22740371]
[1744806943565,7.92025449,126.26,126.21,7.92301522]
[1744806943566,22.1476582,126.26,126.21,22.15041893]
[1744806944936,14.22740371,126.26,126.22,14.22740371]
[1744806945862,76.65570829,126.29,126.25,14.22740371]
[1744806945863,36.86,126.29,126.25,14.22740371]
[1744806946863,36.86,126.29,126.25,22.14794137]
[1744806947957,10.86,126.29,126.26,14.22740371]
[1744806948346,20.81120371,126.3,126.26,14.22740371]
[1744806948545,10.86,126.31,126.27,14.22740371]
[1744806948849,33.00448941,126.31,126.26,14.22740371]
[1744806950155,14.22740371,126.3,126.26,14.22740371]
[1744806950563,25.08740371,126.31,126.26,14.22740371]
[1744806950767,33.00460245,126.31,126.26,14.22740371]
[1744806951063,33.00460245,126.31,126.27,7.91953749]
[1744806952063,33.00460245,126.31,126.27,22.1469412]
[1744806952562,33.00460245,126.31,126.26,22.14726737]
[1744806953763,33.00460245,126.31,126.27,14.22740371]
[1744806954765,10.86,126.31,126.27,14.22740371]
[1744806955351,10.86,126.31,126.29,14.22740371]
[1744806955554,56.13108656,126.34,126.3,14.22740371]
[1744806955754,41.90368285,126.34,126.31,14.22740371]
[1744806956063,30.13108656,126.34,126.3,14.22740371]
[1744806956266,20.70090371,126.34,126.3,14.22740371]
[1744806956652,10.86,126.35,126.32,14.22740371]
[1744806956964,18.77467171,126.35,126.31,14.22740371]
[1744806957162,33.00207542,126.35,126.3,14.22740371]
[1744806957362,14.22740371,126.33,126.29,14.22740371]
[1744806957753,14.22740371,126.33,126.28,14.22740371]
[1744806958169,22.14330264,126.33,126.29,7.91828331]
[1744806958669,22.14330264,126.33,126.28,22.14598133]
[1744806958992,22.14330264,126.33,126.29,14.22740371]
[1744806959651,22.14330264,126.33,126.29,22.14561104]
[1744806960170,22.1432498,126.33,126.29,22.14561104]
[1744806960664,14.22740371,126.32,126.28,7.91858804]
[1744806960866,14.22740371,126.31,126.26,22.14725457]
[1744806961047,14.22740371,126.27,126.22,1.6574]
[1744806961249,36.86,126.3,126.21,17.03326615]
[1744806961250,9.10996372,126.25,126.21,17.03326615]
[1744806961666,9.10996372,126.22,126.17,19.81439867]
[1744806961851,9.10996372,126.23,126.18,9.10996372]
[1744806962050,9.10996372,126.22,126.18,17.03514996]
[1744806962455,9.10996372,126.22,126.18,7.92518624]
[1744806963167,14.24377242,126.22,126.18,7.92518624]
[1744806963884,14.24377242,126.21,126.17,22.16927197]
[1744806965367,14.24377242,126.21,126.17,7.92549955]
[1744806966461,14.24377242,126.21,126.17,22.16927197]
[1744806968686,14.24377242,126.23,126.19,14.24377242]
[1744806968983,14.24377242,126.22,126.18,14.24377242]
[1744806970393,16.9963,126.25,126.2,14.24377242]
[1744806970559,10.86,126.25,126.23,14.24377242]
[1744806972567,10.86,126.25,126.23,22.16531424]
[1744806973886,14.24377242,126.24,126.16,19.81610653]
[1744806974062,14.24377242,126.22,126.16,27.74254914]
[1744806974268,14.24377242,126.22,126.17,14.24377242]
[1744806974479,14.24377242,126.22,126.18,14.24377242]
[1744806974676,14.24377242,126.23,126.19,14.24377242]
[1744806975185,14.24377242,126.23,126.18,14.24377242]
[1744806975563,14.24377242,126.22,126.18,14.24377242]
[1744806976202,14.24377242,126.23,126.18,14.24377242]
[1744806976786,14.24377242,126.23,126.19,22.16833062]
[1744806976967,14.24377242,126.24,126.2,14.24377242]
[1744806977467,14.24377242,126.23,126.19,7.9245582]
[1744806978281,14.24377242,126.24,126.19,22.16833062]
[1744806979193,14.24377242,126.24,126.2,14.24377242]
[1744806979396,25.10377242,126.25,126.21,14.24377242]
[1744806980466,10.86,126.25,126.22,14.24377242]
[1744806980888,25.10377242,126.25,126.21,14.24377242]
[1744806981090,25.10377242,126.25,126.2,14.24377242]
[1744806981276,25.10377242,126.25,126.21,7.92330243]
[1744806981475,33.02463856,126.25,126.21,7.92330243]
[1744806982271,14.24377242,126.24,126.2,22.1673763]
[1744806982776,25.10377242,126.25,126.2,22.1673763]
[1744806983188,10.86,126.25,126.21,14.24377242]
[1744806983373,10.86,126.25,126.22,7.92267469]
[1744806985893,10.86,126.25,126.22,14.24377242]
[1744806986687,10.86,126.25,126.16,67.3747622]
[1744806986688,10.86,126.25,126.23,14.24377242]
[1744806986901,20.24967242,126.28,126.23,14.24377242]
[1744806987079,20.24967242,126.28,126.24,14.24377242]
[1744806987390,6.0059,126.28,126.24,14.24377242]
[1744806987779,28.16860905,126.28,126.23,14.24377242]
[1744806987980,22.16359832,126.27,126.22,22.16595803]
[1744806988486,14.24377242,126.27,126.22,7.92218561]
[1744806988691,20.24967242,126.28,126.24,14.24377242]
[1744806989181,6.0059,126.28,126.24,14.24377242]
[1744806989381,59.0223789,126.29,126.24,14.24377242]
[1744806989382,51.10377242,126.29,126.24,14.24377242]
[1744806989572,40.24377242,126.29,126.24,14.24377242]
[1744806990173,40.24377242,126.29,126.25,7.92079207]
[1744806990368,40.24377242,126.29,126.24,22.1649136]
[1744806990369,14.24377242,126.28,126.24,22.1649136]
[1744806990773,40.24377242,126.29,126.24,22.1649136]
[1744806993191,12.5027,126.3,126.25,14.24377242]
[1744806993394,26.74647242,126.3,126.25,14.24377242]
[1744806993695,26.74647242,126.3,126.26,14.24377242]
[1744806993883,26.74647242,126.3,126.25,14.24377242]
[1744806994586,34.66429266,126.3,126.25,14.24377242]
[1744806994898,14.24377242,126.29,126.26,7.92016473]
[1744806995288,14.24377242,126.29,126.24,14.24377242]
[1744806995496,14.24377242,126.28,126.24,14.24377242]
[1744806996981,14.24377242,126.29,126.25,22.16456449]
[1744807001598,14.24377242,126.29,126.25,7.92079207]
[1744807001802,22.16206273,126.29,126.25,22.16456449]
[1744807002381,14.24377242,126.29,126.25,7.92079207]
[1744807002582,14.24377242,126.29,126.25,14.24377242]
[1744807005210,9.10560531,126.29,126.25,9.10560531]
[1744807005406,9.10560531,126.26,126.22,7.92267469]
[1744807005708,39.21247222,126.3,126.2,9.10560531]
[1744807005709,9.10560531,126.24,126.2,9.10560531]
[1744807005915,15.21830531,126.25,126.21,9.10560531]
[1744807006908,15.21830531,126.25,126.21,17.02856836]
[1744807007117,9.10560531,126.24,126.19,7.9245582]
[1744807007291,14.23937419,126.24,126.19,22.16393239]
[1744807007616,39.13294422,126.25,126.2,14.23937419]
[1744807007817,14.23937419,126.24,126.2,14.23937419]
[1744807009030,22.16095896,126.24,126.2,22.16326342]
[1744807010286,22.16095896,126.24,126.2,14.23937419]
[1744807010993,22.16095896,126.24,126.2,22.16317331]
[1744807013410,22.16095896,126.24,126.19,7.9245582]
[1744807013618,22.16095896,126.24,126.2,14.23937419]
[1744807013995,39.13320894,126.25,126.2,14.23937419]
[1744807014296,14.23937419,126.24,126.2,14.23937419]
[1744807015623,22.16115932,126.24,126.2,22.16324955]
[1744807016712,22.16115932,126.24,126.2,14.23937419]
[1744807016916,14.23937419,126.23,126.18,7.9248437]
[1744807017114,14.23937419,126.22,126.18,22.16421789]
[1744807017525,14.23937419,126.21,126.18,7.9248437]
[1744807019735,22.16248463,126.22,126.18,7.9248437]
[1744807019909,22.16248463,126.22,126.18,22.16421789]
[1744807020227,14.23937419,126.22,126.18,22.16421789]
[1744807020425,1.5014,126.24,126.21,14.23937419]
[1744807020628,1.5014,126.24,126.2,22.16330445]
[1744807020931,15.74077419,126.24,126.2,22.16330445]
[1744807021533,23.66221826,126.24,126.2,7.92393026]
[1744807022237,14.23937419,126.22,126.18,14.23937419]
[1744807022415,14.23937419,126.22,126.18,22.164245]
[1744807022825,22.1620588,126.22,126.18,22.164245]
[1744807023032,14.23937419,126.21,126.18,7.92487081]
[1744807023619,14.23937419,126.2,126.18,7.92487081]
[1744807023833,14.23937419,126.21,126.18,7.92487081]
[1744807024224,14.23937419,126.21,126.13,1.5558]
[1744807024225,18.79181043,126.21,126.13,1.5558]
[1744807024418,14.23937419,126.16,126.13,7.92832791]
[1744807024619,14.23937419,126.16,126.12,7.92862607]
[1744807024821,14.23937419,126.17,126.12,22.16800026]
[1744807025224,14.23937419,126.16,126.12,22.16800026]
[1744807025421,14.23937419,126.15,126.11,22.16871829]
[1744807025824,25.09937419,126.15,126.11,22.16871829]
[1744807026141,25.09937419,126.15,126.11,7.9293441]
[1744807026346,25.09937419,126.15,126.11,22.16871829]
[1744807027038,10.86,126.15,126.11,22.16871829]
[1744807027233,10.86,126.15,126.12,14.23937419]
[1744807028345,25.09937419,126.15,126.11,22.16871829]
[1744807029136,19.98587493,126.15,126.11,17.05521903]
[1744807029440,19.98587493,126.15,126.1,19.82422839]
[1744807029441,9.12587493,126.14,126.09,7.93084304]
[1744807029741,9.12587493,126.13,126.09,17.05671797]
[1744807030728,9.12587493,126.1,126.07,7.93210121]
[1744807031140,14.26958852,126.1,126.07,7.93210121]
[1744807031536,14.26958852,126.11,126.07,7.93210121]
[1744807031947,14.26958852,126.11,126.07,22.20168973]
[1744807033647,14.26958852,126.11,126.07,7.93210121]
[1744807033848,14.26958852,126.11,126.07,22.20168973]
[1744807034247,14.26958852,126.11,126.07,7.93210121]
[1744807034563,14.26958852,126.1,126.06,68.03365037]
[1744807034848,14.26958852,126.11,126.07,14.26958852]
[1744807035153,43.92139895,126.15,126.1,14.26958852]
[1744807035453,14.26958852,126.14,126.1,14.26958852]
[1744807035951,25.12958852,126.15,126.11,14.26958852]
[1744807036254,25.12958852,126.15,126.1,14.26958852]
[1744807036565,25.12958852,126.15,126.11,7.92958528]
[1744807036748,25.12958852,126.15,126.11,22.1991738]
[1744807037129,10.86,126.15,126.12,14.26958852]
[1744807037325,25.12958852,126.15,126.11,22.1991738]
[1744807040051,33.05668119,126.15,126.11,22.1991738]
[1744807040352,14.26958852,126.12,126.1,7.93004021]
[1744807040769,14.26958852,126.12,126.09,7.93084304]
[1744807041136,14.26958852,126.11,126.08,7.93117178]
[1744807041350,14.26958852,126.1,126.08,7.93117178]
[1744807041538,14.26958852,126.11,126.08,7.93117178]
[1744807042166,14.26958852,126.12,126.08,22.2007603]
[1744807042967,14.26958852,126.14,126.1,14.26958852]
[1744807043851,14.26958852,126.13,126.1,7.92988007]
[1744807044150,14.26958852,126.12,126.09,7.93076363]
[1744807045065,14.26958852,126.1,126.05,1.5584]
[1744807045244,14.26958852,126.1,126.06,14.26958852]
[1744807045443,25.12958852,126.1,126.06,14.26958852]
[1744807045646,25.12958852,126.1,126.05,1.5584]
[1744807045647,14.26958852,126.08,126.04,14.26958852]
[1744807045871,14.26958852,126.09,126.05,14.26958852]
[1744807046437,14.26958852,126.08,126.04,14.26958852]
[1744807047163,14.26958852,126.05,126.02,7.93524837]
[1744807047463,14.26958852,126.06,126.02,7.93524837]
[1744807047644,14.26958852,126.06,126.02,22.20483689]
[1744807047845,14.26958852,126.07,126.03,14.26958852]
[1744807048245,14.26958852,126.07,126.02,42.04295782]
[1744807048954,14.26958852,126.07,126.03,14.26958852]
[1744807049160,14.26958852,126.08,126.04,22.20357772]
[1744807049760,14.26958852,126.08,126.04,7.9339892]
[1744807050146,14.26958852,126.06,126.01,22.20546662]
[1744807050753,14.26958852,126.06,126.02,14.26958852]
[1744807051284,14.26958852,126.07,126.03,7.93461874]
[1744807051445,14.26958852,126.07,126.03,22.20420726]
[1744807051948,18.6461,126.1,126.04,14.26958852]
[1744807052253,14.26958852,126.09,126.05,14.26958852]
[1744807052459,14.26958852,126.09,126.04,14.26958852]
[1744807052891,10.86,126.1,126.07,14.26958852]
[1744807053058,10.86,126.1,126.08,14.26958852]
[1744807053262,10.86,126.1,126.08,17.06052541]
[1744807053573,10.86,126.1,126.09,9.12925004]
[1744807054277,247.44,126.13,126.09,9.12925004]
[1744807054571,247.44,126.13,126.1,9.12925004]
[1744807055266,247.44,126.13,126.1,22.190609]
[1744807058072,247.44,126.13,126.1,14.26075032]
[1744807058259,261.70075032,126.13,126.09,22.19128169]
[1744807058558,14.26075032,126.11,126.07,22.19285153]
[1744807058766,14.26075032,126.12,126.07,7.93210121]
[1744807058970,14.26075032,126.11,126.07,22.19285153]
[1744807059453,14.26075032,126.12,126.07,22.19285153]
[1744807059655,14.26075032,126.12,126.08,14.26075032]
[1744807059866,14.26075032,126.12,126.07,22.19285153]
[1744807060448,26.57811212,126.13,126.07,22.19285153]
[1744807060449,14.26075032,126.11,126.07,22.19285153]
[1744807060872,33.05256075,126.12,126.07,22.19285153]
[1744807061462,14.26075032,126.12,126.08,14.26075032]
[1744807061661,34.26075032,126.13,126.08,14.26075032]
[1744807062479,14.26075032,126.12,126.08,22.19182917]
[1744807063181,22.18926815,126.13,126.08,22.19182917]
[1744807064278,22.18987139,126.12,126.08,7.93107885]
[1744807064482,14.26075032,126.11,126.08,7.93107885]
[1744807064660,14.26075032,126.11,126.07,22.19261329]
[1744807065685,14.26075032,126.12,126.08,22.19189244]
[1744807067186,25.14075032,126.14,126.09,14.26075032]
[1744807067385,10.88,126.14,126.1,14.26075032]
[1744807067688,33.06863344,126.14,126.1,22.19091042]
[1744807068383,25.14075032,126.14,126.1,22.19091042]
[1744807068885,33.0684998,126.14,126.1,22.19091042]
[1744807069094,18.80774948,126.14,126.1,22.19091042]
[1744807069280,33.0684998,126.14,126.1,22.19091042]
[1744807069476,14.26075032,126.12,126.07,7.93210121]
[1744807069689,40.83900558,126.13,126.08,22.19171498]
[1744807071067,14.26075032,126.12,126.07,7.93210121]
[1744807071266,14.26075032,126.11,126.07,22.19285153]
[1744807071896,14.26075032,126.11,126.07,7.93210121]
[1744807072479,14.26075032,126.11,126.07,22.19285153]
[1744807073189,22.19045745,126.11,126.07,22.19285153]
[1744807073389,14.26075032,126.11,126.07,22.19285153]
[1744807074679,7.92929508,126.12,126.07,22.19285153]
[1744807074680,0.050363,126.1,126.07,22.19285153]
[1744807074879,0.050363,126.1,126.08,14.26075032]
[1744807075082,0.050363,126.1,126.09,22.19159336]
[1744807079304,0.050363,126.1,126.09,7.93084304]
[1744807079604,0.050363,126.1,126.09,22.19159336]
[1744807081092,0.050363,126.1,126.09,14.26075032]
[1744807081905,0.050363,126.1,126.09,22.19159336]
[1744807082088,0.050363,126.1,126.04,27.53503282]
[1744807082283,0.050363,126.1,126.07,14.26075032]
[1744807082803,0.050363,126.1,126.06,14.26075032]
[1744807083005,14.26075032,126.09,126.05,7.93335977]
[1744807083306,20.03504062,126.09,126.04,17.06868472]
[1744807083513,27.96625644,126.09,126.04,17.06868472]
[1744807083688,9.13504062,126.08,126.04,17.06868472]
[1744807084810,9.13504062,126.08,126.02,7.93524837]
[1744807085104,9.13504062,126.08,126.04,9.13504062]
[1744807085404,14.27443276,126.08,126.03,14.27443276]
[1744807085610,14.27443276,126.08,126.02,7.93524837]
[1744807085611,14.27443276,126.07,126.02,7.93524837]
[1744807085804,14.27443276,126.07,126.03,14.27443276]
[1744807086311,14.27443276,126.06,126.02,7.93524837]
[1744807086490,14.27443276,126.05,126.01,14.27443276]
[1744807086894,14.27443276,126.05,126.01,22.20989824]
[1744807088410,28.27014386,126.07,126.01,22.20989824]
[1744807088712,34.61234319,126.07,126.02,14.27443276]
[1744807089614,42.54448761,126.07,126.02,14.27443276]
[1744807089810,42.54448761,126.07,126.02,22.20909473]
[1744807090516,14.27443276,126.05,126.01,22.2099851]
[1744807091002,28.12789328,126.07,126.01,22.2099851]
[1744807091203,0.14216157,126.06,126.01,22.2099851]
[1744807091407,14.41659433,126.06,126.01,22.2099851]
[1744807091718,28.12789328,126.07,126.04,14.27443276]
[1744807091719,1.5461,126.07,126.04,14.27443276]
[1744807092019,26.0,126.08,126.04,22.20802775]
[1744807092512,33.93150239,126.08,126.04,22.20802775]
[1744807092704,48.20593515,126.08,126.04,22.20802775]
[1744807092893,14.27443276,126.06,126.02,22.20939837]
[1744807093205,14.27443276,126.05,126.02,7.93496561]
[1744807094820,22.20793107,126.05,126.0,7.93650793]
[1744807095114,14.27443276,126.05,126.01,14.27443276]
[1744807095517,22.20805615,126.05,126.0,7.93650793]
[1744807095707,22.20805615,126.05,126.0,22.21094069]
[1744807096313,22.20805615,126.05,126.01,22.20991953]
[1744807096520,14.27443276,126.05,126.01,22.20991953]
[1744807096914,22.2079544,126.05,126.01,7.93548677]
[1744807097115,26.74873276,126.04,126.0,14.27443276]
[1744807097319,12.4743,126.04,126.01,14.27443276]
[1744807097511,10.9,126.04,126.02,14.27443276]
[1744807098015,10.9,126.04,126.0,14.27443276]
[1744807098413,10.9,126.04,126.01,7.9358781]
[1744807098923,25.17443276,126.04,126.0,22.2105993]
[1744807099219,33.10842709,126.04,125.99,22.21134164]
[1744807099520,40.27443276,126.0,125.93,14.27443276]
[1744807099815,14.27443276,125.98,125.93,14.27443276]
[1744807100017,14.27443276,125.96,125.92,14.27443276]
[1744807100398,14.27443276,125.97,125.92,14.27443276]
[1744807101221,14.27443276,125.97,125.92,22.21584507]
[1744807101799,14.27443276,125.96,125.92,14.27443276]
[1744807102195,14.27443276,125.97,125.92,14.27443276]
[1744807102400,22.3552672,125.97,125.92,14.27443276]
[1744807102601,14.27443276,125.97,125.93,14.27443276]
[1744807103111,14.27443276,125.97,125.92,22.21572543]
[1744807103315,14.27443276,125.96,125.92,14.27443276]
[1744807103843,14.27443276,125.95,125.9,7.94257383]
[1744807104030,14.27443276,125.95,125.91,14.27443276]
[1744807104414,22.21431275,125.95,125.9,22.21700659]
[1744807104905,22.21365189,125.96,125.91,14.27443276]
[1744807105111,22.21365189,125.96,125.92,14.27443276]
[1744807105314,22.21365189,125.96,125.91,14.27443276]
[1744807105511,10.88,125.95,125.91,14.27443276]
[1744807106122,18.8197182,125.95,125.91,22.21650347]
[1744807107035,33.09415096,125.95,125.91,14.27443276]
[1744807107207,14.27443276,125.94,125.9,14.27443276]
[1744807107402,14.27443276,125.94,125.89,7.94315604]
[1744807107616,33.09415096,125.95,125.9,14.27443276]
[1744807108743,14.27443276,125.93,125.89,7.94315604]
[1744807108914,14.27443276,125.93,125.89,14.27443276]
[1744807109519,14.27443276,125.94,125.9,14.27443276]
[1744807110112,10.88,125.95,125.92,14.27443276]
[1744807110317,25.15443276,125.95,125.91,14.27443276]
[1744807111251,14.27443276,125.94,125.9,14.27443276]
[1744807111728,14.27443276,125.94,125.88,30.0295]
[1744807111937,14.27443276,125.94,125.9,14.27443276]
[1744807112344,14.27443276,125.94,125.91,7.94218092]
[1744807112638,25.15443276,125.95,125.91,7.94218092]
[1744807113536,33.09412799,125.95,125.91,7.94218092]
[1744807114155,25.15443276,125.95,125.91,7.94218092]
[1744807114836,25.15443276,125.95,125.91,22.21661368]
[1744807115233,20.03492501,125.95,125.91,7.94218092]
[1744807116334,20.03492501,125.95,125.92,17.09584762]
[1744807116335,10.88,125.95,125.92,17.09584762]
[1744807116839,10.88,125.95,125.92,7.94092261]
[1744807117041,10.88,125.95,125.92,17.09584762]
[1744807118137,26.43632501,125.99,125.94,9.15492501]
[1744807118346,26.43632501,125.99,125.97,17.09306948]
[1744807118347,10.88,125.99,125.97,17.09306948]
[1744807119222,10.88,125.99,125.97,7.93814447]
[1744807120451,10.88,125.99,125.96,9.15492501]
[1744807120637,10.88,125.99,125.97,9.15492501]
[1744807120947,10.88,125.99,125.98,9.15492501]
[1744807121158,10.88,125.99,125.98,14.28642712]
[1744807121531,268.38782712,126.02,125.98,14.28642712]
[1744807122136,268.38782712,126.02,125.94,27.7903029]
[1744807122341,276.32308445,126.02,125.98,14.28642712]
[1744807122650,14.28642712,125.99,125.95,14.28642712]
[1744807122835,14.28642712,126.0,125.96,14.28642712]
[1744807123034,14.28642712,126.01,125.97,14.28642712]
[1744807123234,254.1014,126.02,125.98,14.28642712]
[1744807123549,268.38782712,126.02,125.98,14.28642712]
[1744807124452,268.38782712,126.02,125.98,22.22361104]
[1744807125447,254.1014,126.02,125.98,22.22361104]
[1744807125652,12.3954,126.03,125.99,14.28642712]
[1744807126032,26.68182712,126.03,125.99,14.28642712]
[1744807126252,34.61670929,126.03,125.99,14.28642712]
[1744807126452,14.28642712,126.01,125.96,26.0]
[1744807126638,14.28642712,126.0,125.96,14.28642712]
[1744807127151,14.28642712,126.0,125.94,27.79101158]
[1744807127453,14.28642712,126.0,125.95,14.28642712]
[1744807128960,22.22296699,126.0,125.96,7.93902826]
[1744807130955,22.22296699,126.0,125.94,27.79101158]
[1744807131141,22.22296699,126.0,125.96,14.28642712]
[1744807131558,14.28642712,125.99,125.94,27.79101158]
[1744807131754,14.28642712,125.99,125.95,14.28642712]
[1744807131957,22.22296699,126.0,125.96,14.28642712]
[1744807132155,22.22263026,126.01,125.96,14.28642712]
[1744807132541,14.28642712,126.01,125.96,14.28642712]
[1744807132743,22.22252155,126.01,125.97,14.28642712]
[1744807132959,14.28642712,126.0,125.94,27.79101158]
[1744807133148,14.28642712,126.0,125.96,14.28642712]
[1744807133465,22.22252155,126.01,125.96,14.28642712]
[1744807133661,14.28642712,126.0,125.94,27.79101158]
[1744807133840,14.28642712,125.99,125.95,14.28642712]
[1744807135065,14.28642712,126.0,125.96,22.22545538]
[1744807135366,7.93609443,126.01,125.96,22.22545538]
[1744807135568,22.22252155,126.01,125.96,22.22545538]
[1744807135869,14.28642712,126.0,125.96,22.22545538]
[1744807136172,22.22252155,126.01,125.96,22.22545538]
[1744807137966,14.28642712,126.0,125.96,22.22545538]
[1744807138170,22.2231302,126.0,125.96,22.22545538]
[1744807139670,14.28642712,125.99,125.94,7.94028902]
[1744807139867,33.07823755,125.99,125.94,22.22671614]
[1744807140664,32.93607598,125.99,125.94,22.22671614]
[1744807141165,27.79870918,125.99,125.94,17.08934934]
[1744807141550,9.14906032,125.99,125.95,9.14906032]
[1744807141752,9.14906032,126.01,125.97,9.14906032]
[1744807142250,17.08500194,126.01,125.96,17.08808858]
[1744807142969,9.14906032,126.01,125.96,17.08808858]
[1744807143164,9.14906032,126.01,125.96,7.93902826]
[1744807143474,17.0851663,126.01,125.96,17.08808858]
[1744807144585,9.14906032,126.0,125.95,17.08836859]
[1744807144759,9.14906032,125.99,125.95,17.08836859]
[1744807145160,9.14906032,125.98,125.95,7.93930827]
[1744807145675,17.08625519,125.99,125.95,7.93930827]
[1744807146061,9.14906032,125.98,125.94,7.94001223]
[1744807146253,9.14906032,125.97,125.93,17.08975357]
[1744807147359,10.88,125.98,125.94,9.14906032]
[1744807147773,27.76678328,126.03,125.97,9.14906032]
[1744807147774,37.46517268,126.02,125.97,9.14906032]
[1744807148056,9.14906032,126.0,125.96,7.93902826]
[1744807148666,9.14906032,126.0,125.96,17.08808858]
[1744807148864,9.14906032,126.01,125.97,9.14906032]
[1744807149055,20.02906032,126.02,125.97,9.14906032]
[1744807149266,9.14906032,126.01,125.96,27.78659891]
[1744807149467,9.14906032,126.01,125.97,9.14906032]
[1744807149863,9.14906032,126.0,125.94,19.85030996]
[1744807150075,9.14906032,126.0,125.96,9.14906032]
[1744807150465,27.79870918,126.0,125.95,7.93965859]
[1744807150674,9.14906032,125.99,125.95,7.93965859]
[1744807151264,27.94087075,126.01,125.96,9.14906032]
[1744807151466,27.94087075,126.01,125.97,9.14906032]
[1744807151981,35.87680639,126.01,125.97,17.08724653]
[1744807152182,35.87680639,126.01,125.97,7.93818621]
[1744807152681,9.14906032,126.0,125.97,7.93818621]
[1744807153477,35.87680639,126.01,125.97,7.93818621]
[1744807154985,9.14906032,126.0,125.97,7.93818621]
[1744807156881,9.14906032,126.01,125.97,17.08724653]
[1744807157090,18.81551363,126.02,125.97,17.08724653]
[1744807157275,9.14906032,126.01,125.97,17.08724653]
[1744807158787,27.96457395,126.02,125.97,17.08724653]
[1744807159383,20.02906032,126.02,125.97,17.08724653]
[1744807159686,27.96430906,126.02,125.97,17.08724653]
[1744807160267,9.14906032,126.01,125.97,17.08724653]
[1744807161389,9.14906032,126.0,125.96,7.93879813]
[1744807161586,18.81524874,126.02,125.96,17.08785845]
[1744807161793,9.14906032,126.01,125.96,17.08785845]
[1744807163182,9.14906032,126.01,125.97,9.14906032]
[1744807163379,27.96430906,126.02,125.97,9.14906032]
[1744807164387,27.96430906,126.02,125.97,17.08694223]
[1744807166670,9.14906032,126.01,125.96,7.93902826]
[1744807166873,9.14906032,126.01,125.96,17.08808858]
[1744807167680,9.14906032,126.0,125.96,7.93902826]
[1744807168490,9.14906032,126.0,125.96,17.08808858]
[1744807169471,9.14906032,126.0,125.96,7.93902826]
[1744807169670,17.08576205,126.0,125.95,9.46561562]
[1744807169915,9.14906032,125.96,125.92,7.94155019]
[1744807170078,9.14906032,125.97,125.92,17.09061051]
[1744807171575,9.14906032,125.97,125.93,9.14906032]
[1744807172193,9.14906032,125.97,125.92,17.09061051]
[1744807172780,9.14906032,125.98,125.94,9.14906032]
[1744807173091,9.14906032,125.99,125.94,17.08877028]
[1744807173477,9.14906032,125.98,125.94,17.08877028]
[1744807174779,9.14906032,125.98,125.94,7.93970996]
[1744807174984,9.14906032,125.98,125.94,17.08877028]
[1744807175196,9.14906032,125.97,125.93,7.94057587]
[1744807175398,9.14906032,125.96,125.93,7.94057587]
[1744807175982,9.14906032,125.97,125.93,7.94057587]
[1744807176378,9.14906032,125.98,125.93,17.08963619]
[1744807176577,9.14906032,125.97,125.93,17.08963619]
[1744807176791,9.14906032,125.95,125.93,7.94057587]
[1744807176987,9.14906032,125.95,125.91,1.6349]
[1744807177673,9.14906032,125.95,125.91,18.72591668]
[1744807177878,9.14906032,125.96,125.92,9.14906032]
[1744807178077,20.02906032,125.97,125.92,9.14906032]
[1744807178297,9.14906032,125.96,125.91,18.72591668]
[1744807179600,9.14906032,125.96,125.91,9.57685636]
[1744807179800,9.14906032,125.96,125.91,18.72591668]
[1744807180298,9.14906032,125.95,125.91,7.94195636]